[Event "Early-Titled-Tuesday-Blitz-February-13-2024"]
[Site "Chess.com"]
[Date "2024.02.13"]
[Round "8"]
[White "maicolbenavides"]
[Black "Kildepiotr"]
[Result "0-1"]
[WhiteElo "2524"]
[BlackElo "2698"]
[TimeControl "180+1"]
[EndTime "9:32:49 PST"]
[Termination "Kildepiotr won by resignation"]

1. e4 {[%clk 0:03:00.9]} 1... g6 {[%clk 0:02:57.5]} 2. d4 {[%clk 0:03:00.8]}
2... Bg7 {[%clk 0:02:57.7]} 3. Nc3 {[%clk 0:03:01.3]} 3... c6 {[%clk 0:02:58.2]}
4. Be3 {[%clk 0:03:00.6]} 4... d5 {[%clk 0:02:58.5]} 5. f3 {[%clk 0:02:59.4]}
5... dxe4 {[%clk 0:02:58.5]} 6. fxe4 {[%clk 0:03:00.3]} 6... Nf6 {[%clk
0:02:59.1]} 7. h3 {[%clk 0:02:59.1]} 7... e5 {[%clk 0:02:57.4]} 8. Nf3 {[%clk
0:02:49.7]} 8... exd4 {[%clk 0:02:57.1]} 9. Nxd4 {[%clk 0:02:49.6]} 9... O-O
{[%clk 0:02:56.8]} 10. Qf3 {[%clk 0:02:16]} 10... Nbd7 {[%clk 0:02:37.7]} 11.
O-O-O {[%clk 0:02:14.5]} 11... Qe7 {[%clk 0:02:32.3]} 12. g4 {[%clk 0:02:08.5]}
12... Ne5 {[%clk 0:02:29.5]} 13. Qf2 {[%clk 0:02:06.5]} 13... b5 {[%clk
0:02:18.4]} 14. Nde2 {[%clk 0:01:32.4]} 14... Nfd7 {[%clk 0:01:55.9]} 15. Ng3
{[%clk 0:01:25.7]} 15... b4 {[%clk 0:01:49.3]} 16. Na4 {[%clk 0:01:25]} 16...
Qe6 {[%clk 0:01:39.9]} 17. Kb1 {[%clk 0:01:15.7]} 17... Nc4 {[%clk 0:01:35]} 18.
Bd4 {[%clk 0:00:54.6]} 18... Nde5 {[%clk 0:01:21.9]} 19. Nc5 {[%clk 0:00:36]}
19... Qe7 {[%clk 0:01:19]} 20. Bxc4 {[%clk 0:00:29.1]} 20... Nxc4 {[%clk
0:01:18.8]} 21. Bxg7 {[%clk 0:00:28.3]} 21... Kxg7 {[%clk 0:01:19.3]} 22. Qd4+
{[%clk 0:00:28.2]} 22... Ne5 {[%clk 0:01:19.7]} 23. Nd3 {[%clk 0:00:23.7]} 23...
Re8 {[%clk 0:01:14.4]} 24. Qxb4 {[%clk 0:00:19.5]} 24... Qxb4 {[%clk 0:01:07.6]}
25. Nxb4 {[%clk 0:00:20.4]} 25... Be6 {[%clk 0:01:04.4]} 26. Nd3 {[%clk
0:00:19.1]} 26... Nc4 {[%clk 0:01:01.9]} 27. Nc5 {[%clk 0:00:18.3]} 27... Rab8
{[%clk 0:00:51.9]} 28. b3 {[%clk 0:00:18.4]} 28... Ne5 {[%clk 0:00:44.7]} 29.
Rd6 {[%clk 0:00:14.4]} 29... Bc8 {[%clk 0:00:36.3]} 30. Rf1 {[%clk 0:00:12]}
30... Rb5 {[%clk 0:00:34.5]} 31. Nd3 {[%clk 0:00:10.9]} 31... Nc4 {[%clk
0:00:26.4]} 32. Rxc6 {[%clk 0:00:05.2]} 32... Nd2+ {[%clk 0:00:26.6]} 33. Kb2
{[%clk 0:00:05.7]} 33... Nxf1 {[%clk 0:00:26.5]} 34. Nxf1 {[%clk 0:00:06.6]}
34... Bb7 {[%clk 0:00:24.5]} 35. Rc7 {[%clk 0:00:06.2]} 35... Bxe4 {[%clk
0:00:20.3]} 36. Nc5 {[%clk 0:00:06.6]} 36... Bg2 {[%clk 0:00:15]} 37. Nd2 {[%clk
0:00:05.5]} 37... Bxh3 {[%clk 0:00:14.7]} 38. g5 {[%clk 0:00:05.3]} 38... Bf5
{[%clk 0:00:13.2]} 39. a4 {[%clk 0:00:05.2]} 39... Rbb8 {[%clk 0:00:09.3]} 40.
Nc4 {[%clk 0:00:04.9]} 40... Rbc8 {[%clk 0:00:06.9]} 41. Rxc8 {[%clk 0:00:03.9]}
41... Rxc8 {[%clk 0:00:07.8]} 42. Nb7 {[%clk 0:00:03]} 42... Re8 {[%clk
0:00:07]} 43. Nbd6 {[%clk 0:00:02.9]} 43... Re2 {[%clk 0:00:06.7]} 44. Nxf5+
{[%clk 0:00:02.3]} 44... gxf5 {[%clk 0:00:07.6]} 45. b4 {[%clk 0:00:02.9]} 45...
Kg6 {[%clk 0:00:07.8]} 46. b5 {[%clk 0:00:03.2]} 46... Kxg5 {[%clk 0:00:08.4]}
47. a5 {[%clk 0:00:03.9]} 47... h5 {[%clk 0:00:08.6]} 48. b6 {[%clk 0:00:04.5]}
48... axb6 {[%clk 0:00:09.5]} 49. axb6 {[%clk 0:00:05.4]} 49... Re8 {[%clk
0:00:09.2]} 50. Na5 {[%clk 0:00:03.3]} 50... h4 {[%clk 0:00:09.6]} 51. b7 {[%clk
0:00:03.1]} 51... h3 {[%clk 0:00:10]} 52. Nc6 {[%clk 0:00:02.3]} 52... h2 {[%clk
0:00:10.7]} 0-1

[Event "Early-Titled-Tuesday-Blitz-February-13-2024"]
[Site "Chess.com"]
[Date "2024.02.13"]
[Round "8"]
[White "ansko1999"]
[Black "KhazhatulyAlikhan"]
[Result "1-0"]
[WhiteElo "2661"]
[BlackElo "2411"]
[TimeControl "180+1"]
[EndTime "9:32:54 PST"]
[Termination "ansko1999 won by checkmate"]

1. Nf3 {[%clk 0:03:00.9]} 1... Nf6 {[%clk 0:02:59.5]} 2. b3 {[%clk 0:03:00.8]}
2... d5 {[%clk 0:02:56.8]} 3. Bb2 {[%clk 0:03:01]} 3... e6 {[%clk 0:02:57.7]} 4.
g3 {[%clk 0:03:00.5]} 4... Be7 {[%clk 0:02:58.1]} 5. Bg2 {[%clk 0:03:01]} 5...
O-O {[%clk 0:02:58.7]} 6. O-O {[%clk 0:03:01.6]} 6... c5 {[%clk 0:02:59.3]} 7.
e3 {[%clk 0:02:58.4]} 7... Nc6 {[%clk 0:02:59.8]} 8. Ne5 {[%clk 0:02:58.3]} 8...
Nxe5 {[%clk 0:02:58.9]} 9. Bxe5 {[%clk 0:02:59.2]} 9... Bd7 {[%clk 0:02:59]} 10.
d4 {[%clk 0:02:56]} 10... Bc6 {[%clk 0:02:59.5]} 11. dxc5 {[%clk 0:02:48.8]}
11... Bxc5 {[%clk 0:02:59.5]} 12. Nd2 {[%clk 0:02:48.6]} 12... Rc8 {[%clk
0:02:57.5]} 13. a3 {[%clk 0:02:40.9]} 13... Bd6 {[%clk 0:02:55.9]} 14. Bb2
{[%clk 0:02:38]} 14... Qe7 {[%clk 0:02:56]} 15. c4 {[%clk 0:02:28.4]} 15... dxc4
{[%clk 0:02:55.3]} 16. Nxc4 {[%clk 0:02:27.4]} 16... Bxg2 {[%clk 0:02:41.7]} 17.
Kxg2 {[%clk 0:02:28.3]} 17... Bb8 {[%clk 0:02:40.2]} 18. Qf3 {[%clk 0:02:26.8]}
18... Nd7 {[%clk 0:02:24.6]} 19. Qxb7 {[%clk 0:02:19.9]} 19... Rfd8 {[%clk
0:02:24.3]} 20. Rfd1 {[%clk 0:02:19.2]} 20... Qe8 {[%clk 0:02:23.9]} 21. Rac1
{[%clk 0:02:15.1]} 21... Nc5 {[%clk 0:02:24.2]} 22. Qb4 {[%clk 0:02:06.1]} 22...
Nd3 {[%clk 0:02:11.6]} 23. Qc3 {[%clk 0:02:04.1]} 23... Be5 {[%clk 0:02:10.9]}
24. Rxd3 {[%clk 0:01:26.1]} 24... Bxc3 {[%clk 0:02:07.2]} 25. Rdxc3 {[%clk
0:01:26.8]} 25... Qc6+ {[%clk 0:01:55.6]} 26. Kg1 {[%clk 0:01:26.6]} 26... Qf3
{[%clk 0:01:50.7]} 27. Nd2 {[%clk 0:01:14]} 27... Qb7 {[%clk 0:01:26.7]} 28. Nc4
{[%clk 0:01:10]} 28... Qf3 {[%clk 0:01:16.1]} 29. Nd2 {[%clk 0:01:09.4]} 29...
Rxc3 {[%clk 0:01:06.4]} 30. Bxc3 {[%clk 0:00:59.9]} 30... Qe2 {[%clk 0:01:02.6]}
31. Ba5 {[%clk 0:00:54.6]} 31... Ra8 {[%clk 0:00:51]} 32. Kg2 {[%clk 0:00:50.1]}
32... h5 {[%clk 0:00:48.1]} 33. h4 {[%clk 0:00:49.8]} 33... Qb5 {[%clk 0:00:46]}
34. b4 {[%clk 0:00:39.9]} 34... Qd5+ {[%clk 0:00:30.3]} 35. Nf3 {[%clk
0:00:39.8]} 35... f6 {[%clk 0:00:25.4]} 36. Rc5 {[%clk 0:00:39.2]} 36... Qe4
{[%clk 0:00:21.9]} 37. Rxh5 {[%clk 0:00:36]} 37... f5 {[%clk 0:00:15.7]} 38. Rg5
{[%clk 0:00:35.3]} 38... Rc8 {[%clk 0:00:08.8]} 39. h5 {[%clk 0:00:20.1]} 39...
Kf7 {[%clk 0:00:06.6]} 40. Rg6 {[%clk 0:00:19.8]} 40... Rh8 {[%clk 0:00:06.9]}
41. Rg5 {[%clk 0:00:17.6]} 41... Rc8 {[%clk 0:00:04.1]} 42. Rg6 {[%clk 0:00:16]}
42... Rc3 {[%clk 0:00:03.8]} 43. Bd8 {[%clk 0:00:11.3]} 43... Rxa3 {[%clk
0:00:03.2]} 44. Bc7 {[%clk 0:00:10]} 44... Rb3 {[%clk 0:00:03.1]} 45. Be5 {[%clk
0:00:10.3]} 45... Rxb4 {[%clk 0:00:03.2]} 46. Rxg7+ {[%clk 0:00:10.7]} 46... Kf8
{[%clk 0:00:03.1]} 47. Rg6 {[%clk 0:00:09.5]} 47... Rc4 {[%clk 0:00:01.9]} 48.
h6 {[%clk 0:00:07.7]} 48... Rc2 {[%clk 0:00:01.8]} 49. h7 {[%clk 0:00:07.4]}
49... Qxe3 {[%clk 0:00:02.4]} 50. h8=Q+ {[%clk 0:00:07.4]} 50... Ke7 {[%clk
0:00:02]} 51. Qh7+ {[%clk 0:00:08]} 51... Kd8 {[%clk 0:00:02.6]} 52. Rg8# {[%clk
0:00:08.7]} 1-0

[Event "Early-Titled-Tuesday-Blitz-February-13-2024"]
[Site "Chess.com"]
[Date "2024.02.13"]
[Round "8"]
[White "verrbaa"]
[Black "sergeikim"]
[Result "0-1"]
[WhiteElo "2477"]
[BlackElo "2620"]
[TimeControl "180+1"]
[EndTime "9:32:55 PST"]
[Termination "sergeikim won on time"]

1. e4 {[%clk 0:03:00.9]} 1... e5 {[%clk 0:02:59.9]} 2. Nf3 {[%clk 0:03:00.3]}
2... Nc6 {[%clk 0:03:00]} 3. Bb5 {[%clk 0:03:00.2]} 3... a6 {[%clk 0:03:00.3]}
4. Ba4 {[%clk 0:03:00]} 4... Nf6 {[%clk 0:03:00.5]} 5. O-O {[%clk 0:03:00.2]}
5... b5 {[%clk 0:03:00.8]} 6. Bb3 {[%clk 0:03:00.1]} 6... Bc5 {[%clk 0:03:00.7]}
7. c3 {[%clk 0:02:54.6]} 7... d6 {[%clk 0:03:00.7]} 8. d4 {[%clk 0:02:53.1]}
8... Bb6 {[%clk 0:03:00.8]} 9. a4 {[%clk 0:02:32.3]} 9... Bb7 {[%clk 0:02:59.8]}
10. Re1 {[%clk 0:02:18.7]} 10... h6 {[%clk 0:02:59.1]} 11. axb5 {[%clk
0:01:46.7]} 11... axb5 {[%clk 0:02:58.8]} 12. Rxa8 {[%clk 0:01:46.7]} 12... Bxa8
{[%clk 0:02:58.4]} 13. Na3 {[%clk 0:01:46.9]} 13... O-O {[%clk 0:02:31.2]} 14.
Nxb5 {[%clk 0:01:32.8]} 14... exd4 {[%clk 0:02:25.6]} 15. cxd4 {[%clk
0:01:31.6]} 15... Nb4 {[%clk 0:02:20.9]} 16. Nc3 {[%clk 0:01:28.7]} 16... Re8
{[%clk 0:02:17.5]} 17. d5 {[%clk 0:01:19.4]} 17... Ng4 {[%clk 0:02:10.5]} 18.
Rf1 {[%clk 0:01:19.1]} 18... Bb7 {[%clk 0:01:57.5]} 19. h3 {[%clk 0:01:18.7]}
19... Nf6 {[%clk 0:01:56.7]} 20. Re1 {[%clk 0:01:17.9]} 20... Ba6 {[%clk
0:01:51.4]} 21. Ba4 {[%clk 0:01:08.1]} 21... Nd3 {[%clk 0:01:45.5]} 22. Bxe8
{[%clk 0:01:03.5]} 22... Bxf2+ {[%clk 0:01:30.2]} 23. Kh2 {[%clk 0:00:57.1]}
23... Nxe1 {[%clk 0:01:24]} 24. Bc6 {[%clk 0:00:44.3]} 24... Nxf3+ {[%clk
0:01:17]} 25. Qxf3 {[%clk 0:00:45.2]} 25... Bd4 {[%clk 0:01:12.8]} 26. Bf4
{[%clk 0:00:31.7]} 26... Qe7 {[%clk 0:01:11.6]} 27. b4 {[%clk 0:00:10]} 27...
Bc8 {[%clk 0:00:59.6]} 28. Ne2 {[%clk 0:00:08.5]} 28... Be5 {[%clk 0:00:49.5]}
29. Ng3 {[%clk 0:00:08.9]} 29... Kh7 {[%clk 0:00:42.7]} 30. b5 {[%clk 0:00:09]}
30... g6 {[%clk 0:00:41]} 31. Kg1 {[%clk 0:00:05.6]} 31... Bxf4 {[%clk
0:00:33.8]} 32. Qxf4 {[%clk 0:00:06.5]} 32... h5 {[%clk 0:00:34.1]} 33. Kf1
{[%clk 0:00:03.2]} 33... Nd7 {[%clk 0:00:20.6]} 34. Kg1 {[%clk 0:00:02.6]} 34...
h4 {[%clk 0:00:18.9]} 35. Ne2 {[%clk 0:00:02.7]} 35... Nc5 {[%clk 0:00:18.8]}
36. Nc3 {[%clk 0:00:02.4]} 36... Nd3 {[%clk 0:00:17.7]} 37. Qe3 {[%clk
0:00:02.1]} 37... Ne5 {[%clk 0:00:18.2]} 38. Ne2 {[%clk 0:00:01.9]} 38... Qf6
{[%clk 0:00:18.2]} 39. Qf4 {[%clk 0:00:02.1]} 39... Qe7 {[%clk 0:00:17.4]} 40.
Qe3 {[%clk 0:00:02.2]} 40... Kg7 {[%clk 0:00:17.1]} 41. Qf4 {[%clk 0:00:02.5]}
41... Bd7 {[%clk 0:00:17.3]} 42. Kh2 {[%clk 0:00:02.6]} 42... Bxc6 {[%clk
0:00:17.3]} 43. bxc6 {[%clk 0:00:02.7]} 43... Qd8 {[%clk 0:00:17.1]} 44. Nd4
{[%clk 0:00:02.9]} 44... Qb8 {[%clk 0:00:16.2]} 45. Nf3 {[%clk 0:00:01.9]} 45...
Nxf3+ {[%clk 0:00:15.5]} 46. Qxf3 {[%clk 0:00:02.8]} 46... Qb2 {[%clk
0:00:15.7]} 47. Qd3 {[%clk 0:00:01.9]} 47... Qe5+ {[%clk 0:00:16.1]} 48. Kg1
{[%clk 0:00:02.2]} 48... f5 {[%clk 0:00:16.2]} 49. exf5 {[%clk 0:00:01.9]} 49...
gxf5 {[%clk 0:00:16.5]} 50. Kf2 {[%clk 0:00:02.3]} 50... Kf6 {[%clk 0:00:16.3]}
51. Qe3 {[%clk 0:00:01.6]} 51... Qxe3+ {[%clk 0:00:14.7]} 52. Kxe3 {[%clk
0:00:01.7]} 52... Ke5 {[%clk 0:00:15.2]} 53. Kf3 {[%clk 0:00:01.2]} 53... Kxd5
{[%clk 0:00:15.3]} 54. Kf4 {[%clk 0:00:01.8]} 54... Ke6 {[%clk 0:00:15.3]} 0-1

[Event "Early-Titled-Tuesday-Blitz-February-13-2024"]
[Site "Chess.com"]
[Date "2024.02.13"]
[Round "8"]
[White "EvgenyBurmakin"]
[Black "lluiss"]
[Result "0-1"]
[WhiteElo "2368"]
[BlackElo "2163"]
[TimeControl "180+1"]
[EndTime "9:32:59 PST"]
[Termination "lluiss won by checkmate"]

1. e4 {[%clk 0:03:00.9]} 1... e6 {[%clk 0:02:58.8]} 2. d4 {[%clk 0:03:00.1]}
2... d5 {[%clk 0:02:57.8]} 3. Nd2 {[%clk 0:03:00.5]} 3... Nf6 {[%clk 0:02:57.5]}
4. e5 {[%clk 0:03:00.5]} 4... Nfd7 {[%clk 0:02:57.6]} 5. f4 {[%clk 0:03:00.6]}
5... g6 {[%clk 0:02:56.7]} 6. Ndf3 {[%clk 0:02:55.7]} 6... h5 {[%clk 0:02:56.2]}
7. Bd3 {[%clk 0:02:54.9]} 7... Be7 {[%clk 0:02:55.9]} 8. Ne2 {[%clk 0:02:54.7]}
8... b6 {[%clk 0:02:54.5]} 9. O-O {[%clk 0:02:53.8]} 9... Ba6 {[%clk 0:02:54]}
10. Bxa6 {[%clk 0:02:41.5]} 10... Nxa6 {[%clk 0:02:54.9]} 11. Qd3 {[%clk
0:02:40.8]} 11... Nb4 {[%clk 0:02:50.4]} 12. Qb3 {[%clk 0:02:36.6]} 12... c5
{[%clk 0:02:49.2]} 13. c3 {[%clk 0:02:35]} 13... c4 {[%clk 0:02:44.8]} 14. Qd1
{[%clk 0:02:31.3]} 14... Nd3 {[%clk 0:02:43.1]} 15. Ne1 {[%clk 0:02:29]} 15...
Nxe1 {[%clk 0:02:30.8]} 16. Qxe1 {[%clk 0:02:26.7]} 16... Kf8 {[%clk 0:02:30.6]}
17. Qg3 {[%clk 0:02:22.1]} 17... Bh4 {[%clk 0:01:58.1]} 18. Qf3 {[%clk
0:02:18.6]} 18... Kg7 {[%clk 0:01:57.6]} 19. b3 {[%clk 0:02:06.3]} 19... b5
{[%clk 0:01:49.7]} 20. Ba3 {[%clk 0:01:44.8]} 20... a5 {[%clk 0:01:29.4]} 21.
Bd6 {[%clk 0:01:42.4]} 21... Nb6 {[%clk 0:01:23.5]} 22. f5 {[%clk 0:01:27.4]}
22... exf5 {[%clk 0:01:21.9]} 23. Nf4 {[%clk 0:01:26.2]} 23... Be7 {[%clk
0:01:02.1]} 24. Bxe7 {[%clk 0:01:11.6]} 24... Qxe7 {[%clk 0:01:01.3]} 25. Nxd5
{[%clk 0:01:11.9]} 25... Nxd5 {[%clk 0:01:00.2]} 26. Qxd5 {[%clk 0:01:12.4]}
26... cxb3 {[%clk 0:00:52]} 27. axb3 {[%clk 0:01:10.7]} 27... Rhb8 {[%clk
0:00:45.8]} 28. Rfe1 {[%clk 0:00:43.5]} 28... Qe6 {[%clk 0:00:45.5]} 29. Qf3
{[%clk 0:00:26.6]} 29... Qxb3 {[%clk 0:00:35.7]} 30. d5 {[%clk 0:00:25]} 30...
b4 {[%clk 0:00:35.6]} 31. e6 {[%clk 0:00:16.8]} 31... Qxc3 {[%clk 0:00:33.8]}
32. e7 {[%clk 0:00:15.3]} 32... Qc5+ {[%clk 0:00:25]} 33. Kh1 {[%clk 0:00:14.7]}
33... Re8 {[%clk 0:00:21.6]} 34. d6 {[%clk 0:00:08.4]} 34... Qxd6 {[%clk
0:00:20.3]} 35. Rad1 {[%clk 0:00:09]} 35... Qf6 {[%clk 0:00:19.3]} 36. Rd7
{[%clk 0:00:06.4]} 36... a4 {[%clk 0:00:19]} 37. Qd3 {[%clk 0:00:05]} 37... a3
{[%clk 0:00:17.7]} 38. h3 {[%clk 0:00:05.3]} 38... a2 {[%clk 0:00:17.4]} 39. Rd8
{[%clk 0:00:05.9]} 39... Rxe7 {[%clk 0:00:16.4]} 40. Rxa8 {[%clk 0:00:05.3]}
40... Rxe1+ {[%clk 0:00:15.1]} 41. Kh2 {[%clk 0:00:06.2]} 41... Qe5+ {[%clk
0:00:13.8]} 42. g3 {[%clk 0:00:06.7]} 42... Re2+ {[%clk 0:00:14]} 43. Kg1 {[%clk
0:00:06.8]} 43... Re1+ {[%clk 0:00:14]} 44. Kf2 {[%clk 0:00:06.5]} 44... a1=Q
{[%clk 0:00:13]} 45. Rxa1 {[%clk 0:00:05.5]} 45... Rxa1 {[%clk 0:00:11.1]} 46.
g4 {[%clk 0:00:06.4]} 46... hxg4 {[%clk 0:00:10.2]} 47. hxg4 {[%clk 0:00:07.3]}
47... Qf4+ {[%clk 0:00:10.3]} 48. Kg2 {[%clk 0:00:07.6]} 48... Qxg4+ {[%clk
0:00:10.4]} 49. Kf2 {[%clk 0:00:07.8]} 49... Qf4+ {[%clk 0:00:10.5]} 50. Kg2
{[%clk 0:00:08.2]} 50... Ra2+ {[%clk 0:00:09.5]} 51. Kg1 {[%clk 0:00:06.9]}
51... Qg4+ {[%clk 0:00:08.3]} 52. Kf1 {[%clk 0:00:06.8]} 52... Qf4+ {[%clk
0:00:06.4]} 53. Ke1 {[%clk 0:00:07]} 53... Qc1+ {[%clk 0:00:06.9]} 54. Qd1
{[%clk 0:00:06.1]} 54... Qe3+ {[%clk 0:00:06.9]} 55. Kf1 {[%clk 0:00:06.4]}
55... Qf2# {[%clk 0:00:07.5]} 0-1

[Event "Early-Titled-Tuesday-Blitz-February-13-2024"]
[Site "Chess.com"]
[Date "2024.02.13"]
[Round "8"]
[White "kids2010"]
[Black "ama18"]
[Result "0-1"]
[WhiteElo "2819"]
[BlackElo "2603"]
[TimeControl "180+1"]
[EndTime "9:33:01 PST"]
[Termination "ama18 won by checkmate"]

1. e4 {[%clk 0:02:57.2]} 1... c5 {[%clk 0:03:00.4]} 2. c3 {[%clk 0:02:56.8]}
2... d5 {[%clk 0:02:59.6]} 3. exd5 {[%clk 0:02:56.9]} 3... Qxd5 {[%clk
0:03:00.5]} 4. d4 {[%clk 0:02:57]} 4... g6 {[%clk 0:03:00.9]} 5. Nf3 {[%clk
0:02:55.9]} 5... Bg7 {[%clk 0:03:00.3]} 6. Be3 {[%clk 0:02:56.5]} 6... cxd4
{[%clk 0:02:59.3]} 7. cxd4 {[%clk 0:02:56]} 7... Nh6 {[%clk 0:02:59.3]} 8. Nc3
{[%clk 0:02:55.5]} 8... Qd8 {[%clk 0:02:57]} 9. Bc4 {[%clk 0:02:54.9]} 9... O-O
{[%clk 0:02:56]} 10. O-O {[%clk 0:02:50.2]} 10... Nf5 {[%clk 0:02:56.5]} 11. Bb3
{[%clk 0:02:39.3]} 11... Nc6 {[%clk 0:02:56.4]} 12. Qd2 {[%clk 0:02:29.5]} 12...
Na5 {[%clk 0:02:43.3]} 13. Bd5 {[%clk 0:02:04.6]} 13... e6 {[%clk 0:02:35.9]}
14. Be4 {[%clk 0:02:03.5]} 14... Nc4 {[%clk 0:02:34.2]} 15. Qe2 {[%clk
0:02:03.7]} 15... Ncxe3 {[%clk 0:02:13.8]} 16. fxe3 {[%clk 0:02:04.6]} 16... Bh6
{[%clk 0:02:14]} 17. Bxf5 {[%clk 0:01:59.8]} 17... exf5 {[%clk 0:02:13.7]} 18.
Ne5 {[%clk 0:01:53.3]} 18... Re8 {[%clk 0:02:00]} 19. Rad1 {[%clk 0:01:41.8]}
19... Be6 {[%clk 0:01:51.9]} 20. Qf3 {[%clk 0:01:21.5]} 20... Rc8 {[%clk
0:01:43.3]} 21. e4 {[%clk 0:01:20.9]} 21... Qb6 {[%clk 0:00:44.7]} 22. exf5
{[%clk 0:00:57.5]} 22... Bxf5 {[%clk 0:00:45.6]} 23. Nd5 {[%clk 0:00:56.3]}
23... Qd6 {[%clk 0:00:36.9]} 24. g4 {[%clk 0:00:55.3]} 24... Rcd8 {[%clk
0:00:27.8]} 25. Nc3 {[%clk 0:00:32.6]} 25... Rxe5 {[%clk 0:00:23]} 26. dxe5
{[%clk 0:00:33.5]} 26... Qb6+ {[%clk 0:00:23]} 27. Kh1 {[%clk 0:00:31.6]} 27...
Be6 {[%clk 0:00:23.3]} 28. Ne4 {[%clk 0:00:25.8]} 28... Bg7 {[%clk 0:00:16.3]}
29. Nf6+ {[%clk 0:00:22.2]} 29... Kh8 {[%clk 0:00:16.3]} 30. Rxd8+ {[%clk
0:00:19.4]} 30... Qxd8 {[%clk 0:00:17.2]} 31. Rd1 {[%clk 0:00:19.9]} 31... Qc7
{[%clk 0:00:13.2]} 32. Qd3 {[%clk 0:00:19.7]} 32... Bf8 {[%clk 0:00:06.9]} 33.
Qd8 {[%clk 0:00:19.8]} 33... Qc5 {[%clk 0:00:05.4]} 34. Ne4 {[%clk 0:00:14]}
34... Qb4 {[%clk 0:00:05.5]} 35. a3 {[%clk 0:00:12.2]} 35... Qxe4+ {[%clk
0:00:05]} 36. Kg1 {[%clk 0:00:12.9]} 36... Qxg4+ {[%clk 0:00:05.2]} 37. Kf2
{[%clk 0:00:12.6]} 37... Kg8 {[%clk 0:00:04.2]} 38. Rd4 {[%clk 0:00:11.7]} 38...
Qf5+ {[%clk 0:00:02.8]} 39. Ke3 {[%clk 0:00:12.4]} 39... Qxe5+ {[%clk
0:00:03.2]} 40. Kd3 {[%clk 0:00:13.2]} 40... Qg7 {[%clk 0:00:02.4]} 41. Qb8
{[%clk 0:00:13.3]} 41... Bf5+ {[%clk 0:00:03]} 42. Ke3 {[%clk 0:00:13.2]} 42...
Qf6 {[%clk 0:00:02.8]} 43. Rd8 {[%clk 0:00:14.1]} 43... Qe7+ {[%clk 0:00:03]}
44. Kf4 {[%clk 0:00:14.4]} 44... Kg7 {[%clk 0:00:03.9]} 45. Kf3 {[%clk
0:00:14.9]} 45... Qe4+ {[%clk 0:00:03.7]} 46. Kf2 {[%clk 0:00:15.7]} 46... Be7
{[%clk 0:00:04.3]} 47. Rg8+ {[%clk 0:00:15.9]} 47... Kh6 {[%clk 0:00:04.7]} 48.
Qg3 {[%clk 0:00:14.9]} 48... Qd4+ {[%clk 0:00:04.6]} 49. Kf1 {[%clk 0:00:14.9]}
49... Bh4 {[%clk 0:00:04.8]} 50. Qf3 {[%clk 0:00:14.6]} 50... Bd3+ {[%clk
0:00:04.8]} 51. Kg2 {[%clk 0:00:05.9]} 51... Be4 {[%clk 0:00:05.2]} 52. Rxg6+
{[%clk 0:00:03.6]} 52... fxg6 {[%clk 0:00:04.7]} 53. Kh3 {[%clk 0:00:04.1]}
53... Bxf3 {[%clk 0:00:04.4]} 54. b4 {[%clk 0:00:05]} 54... Qg4# {[%clk
0:00:03.9]} 0-1

[Event "Early-Titled-Tuesday-Blitz-February-13-2024"]
[Site "Chess.com"]
[Date "2024.02.13"]
[Round "8"]
[White "ural58"]
[Black "FoxOnTheRun97"]
[Result "0-1"]
[WhiteElo "2517"]
[BlackElo "2664"]
[TimeControl "180+1"]
[EndTime "9:33:02 PST"]
[Termination "FoxOnTheRun97 won on time"]

1. e4 {[%clk 0:03:00.9]} 1... c6 {[%clk 0:03:00.3]} 2. Nf3 {[%clk 0:02:58.6]}
2... d5 {[%clk 0:03:00.8]} 3. Nc3 {[%clk 0:02:58.8]} 3... Bg4 {[%clk 0:03:00.2]}
4. h3 {[%clk 0:02:58.4]} 4... Bxf3 {[%clk 0:03:00.3]} 5. Qxf3 {[%clk 0:02:58.5]}
5... e6 {[%clk 0:03:00.6]} 6. b3 {[%clk 0:02:57.7]} 6... Nf6 {[%clk 0:02:55.2]}
7. e5 {[%clk 0:02:57.4]} 7... Nfd7 {[%clk 0:02:55.1]} 8. Qg3 {[%clk 0:02:57.5]}
8... c5 {[%clk 0:02:51.5]} 9. f4 {[%clk 0:02:55.5]} 9... g6 {[%clk 0:02:49.1]}
10. h4 {[%clk 0:02:55.3]} 10... h5 {[%clk 0:02:48.3]} 11. Qf3 {[%clk 0:02:52.1]}
11... Nc6 {[%clk 0:02:46.3]} 12. Ne2 {[%clk 0:02:46.9]} 12... Be7 {[%clk
0:02:39.1]} 13. g3 {[%clk 0:02:46.6]} 13... Rc8 {[%clk 0:02:36.3]} 14. c3 {[%clk
0:02:46.3]} 14... a5 {[%clk 0:02:29.5]} 15. a4 {[%clk 0:02:44.8]} 15... Qb6
{[%clk 0:02:27.6]} 16. Rb1 {[%clk 0:02:36.8]} 16... c4 {[%clk 0:02:25]} 17. g4
{[%clk 0:02:31.8]} 17... hxg4 {[%clk 0:02:22.1]} 18. Qxg4 {[%clk 0:02:31.9]}
18... cxb3 {[%clk 0:02:19.3]} 19. h5 {[%clk 0:02:32]} 19... Nc5 {[%clk
0:02:07.2]} 20. Ng3 {[%clk 0:02:14]} 20... gxh5 {[%clk 0:01:40.2]} 21. Nxh5
{[%clk 0:02:12.9]} 21... Kd7 {[%clk 0:01:33.5]} 22. Bb5 {[%clk 0:02:10.4]} 22...
Rcg8 {[%clk 0:01:26.3]} 23. Qf3 {[%clk 0:02:00.5]} 23... Ne4 {[%clk 0:01:15.6]}
24. d4 {[%clk 0:01:27.9]} 24... Nxc3 {[%clk 0:00:55.8]} 25. Rxb3 {[%clk
0:01:01.2]} 25... Nxb5 {[%clk 0:00:52.9]} 26. Rxb5 {[%clk 0:00:59]} 26... Bb4+
{[%clk 0:00:32.7]} 27. Kf1 {[%clk 0:00:49]} 27... Qxd4 {[%clk 0:00:31.6]} 28.
Nf6+ {[%clk 0:00:43.4]} 28... Kc8 {[%clk 0:00:30.9]} 29. Nxg8 {[%clk 0:00:42.3]}
29... Qc4+ {[%clk 0:00:28.9]} 30. Kf2 {[%clk 0:00:37.6]} 30... Rxg8 {[%clk
0:00:25.3]} 31. Be3 {[%clk 0:00:33.9]} 31... Qc2+ {[%clk 0:00:24.8]} 32. Kf1
{[%clk 0:00:29.4]} 32... Qxa4 {[%clk 0:00:20.7]} 33. Rb6 {[%clk 0:00:22.7]}
33... Qa1+ {[%clk 0:00:19]} 34. Kf2 {[%clk 0:00:21.8]} 34... Qb2+ {[%clk
0:00:19.1]} 35. Kf1 {[%clk 0:00:21.5]} 35... Qb1+ {[%clk 0:00:19.2]} 36. Kf2
{[%clk 0:00:20.7]} 36... Qc2+ {[%clk 0:00:19.4]} 37. Kf1 {[%clk 0:00:20.9]}
37... Qc4+ {[%clk 0:00:16.2]} 38. Kf2 {[%clk 0:00:20.7]} 38... Nd4 {[%clk
0:00:16.3]} 39. Qd1 {[%clk 0:00:16.6]} 39... Nc2 {[%clk 0:00:14.3]} 40. Rh3
{[%clk 0:00:08.7]} 40... Nxe3 {[%clk 0:00:13.5]} 41. Rxe3 {[%clk 0:00:08.3]}
41... Bc5 {[%clk 0:00:13.8]} 42. Rb3 {[%clk 0:00:07.8]} 42... Bxe3+ {[%clk
0:00:11.4]} 43. Rxe3 {[%clk 0:00:07.2]} 43... d4 {[%clk 0:00:11.6]} 44. Rd3
{[%clk 0:00:06.7]} 44... Rd8 {[%clk 0:00:11]} 45. Kg3 {[%clk 0:00:05.6]} 45...
Kb8 {[%clk 0:00:11.4]} 46. Kg4 {[%clk 0:00:04.1]} 46... a4 {[%clk 0:00:11.7]}
47. Kg5 {[%clk 0:00:04.1]} 47... Qd5 {[%clk 0:00:11.2]} 48. Qxa4 {[%clk
0:00:02]} 48... Qg2+ {[%clk 0:00:11.2]} 49. Kf6 {[%clk 0:00:02.2]} 49... Qg6+
{[%clk 0:00:11.4]} 50. Ke7 {[%clk 0:00:02.5]} 50... Qxd3 {[%clk 0:00:10.9]} 51.
Kxd8 {[%clk 0:00:02.2]} 51... Qc3 {[%clk 0:00:10.9]} 0-1